[Event "3rd President Cup-A 2024"]
[Site "Tashkent"]
[Date "2024.11.22"]
[Round "1.1"]
[White "Panda Sambit"]
[Black "Abdusattorov, Nodirbek"]
[Result "0-1"]
[ECO "E44"]
[WhiteElo "2380"]
[BlackElo "2777"]
[Annotator "TA"]
[PlyCount "70"]
[EventDate "2024.11.22"]
[EventType "swiss"]
[EventCountry "UZB"]
[SourceTitle "playchess.com"]
[Source "ChessBase"]
[SourceQuality "1"]
[TimeControl "5400+30"]

{[%evp 13,69,2,18,17,24,5,10,10,3,0,7,2,11,8,24,16,17,0,9,-10,-4,-29,-22,-22,-4,-1,0,-27,-18,-30,-39,-28,-46,-57,-57,-92,-33,-109,-101,-92,-27,-86,-90,-254,-263,-243,-258,-267,-254,-264,-253,-1024,-969,-5433,-5326,-29998,-29999,-29999]} 1. d4 {[%emt 0:00:20]} Nf6 {[%emt 0:00:19][%cal Bg8f6,Bf6e4,Be4d2][%mdl 32]} 2. c4 {[%emt 0:00:11]} e6 {[%emt 0:00:16]} 3. Nc3 {[%emt 0:00:11]} Bb4 {[%emt 0:00:12]} 4. e3 {[%emt 0:00:08]} b6 {[%emt 0:00:15]} 5. Nge2 {[%emt 0:00:07]} Ne4 {[%emt 0:00:40]} 6. Bd2 {[%emt 0:00:06]} Nxd2 {[%emt 0:00:17]} 7. Qxd2 {[%emt 0:00:06]} Bb7 {[%emt 0:00:39]} 8. a3 {[%emt 0:06:50]} Be7 {[%emt 0:00:10]} 9. Nf4 {[%emt 0:09:58]} d6 {[%emt 0:00:48]} 10. Be2 {[%emt 0:07:20] The position is equal.} O-O {[%emt 0:02:26]} 11. O-O {[%emt 0:00:26]} Nd7 {[%emt 0:00:57]} 12. Rad1 {[%emt 0:02:37]} Nf6 {[%emt 0:02:30]} 13. Qc2 {[%emt 0:02:15]} d5 {[%emt 0:01:00]} 14. cxd5 {[%emt 0:05:36]} exd5 {[%emt 0:00:09]} 15. b4 {[%emt 0:00:09]} Bd6 {[%emt 0:04:43]} 16. Nd3 {[%emt 0:07:32]} c6 {[%emt 0:04:24]} 17. a4 {[%emt 0:10:25]} Qc7 {[%emt 0:06:35]} 18. g3 {[%emt 0:02:34]} h5 {[%emt 0:00:13][%cal Oh5h4]} 19. Bf3 {[%emt 0:08:55]} Rfe8 {[%emt 0:01:34][%cal Oh5h4]} 20. Nf4 {[%emt 0:11:22]} h4 {[%emt 0:01:55]} (20... Bxb4 $6 21. Ncxd5 (21. Nxh5 Qd6 $15) 21... Nxd5 22. Nxd5 $16 (22. Nxh5 $2 Qe7 $19)) 21. Rc1 {[%emt 0:00:14][%cal Oc3d5]} Qd7 {[%emt 0:07:21]} ({But not} 21... Bxb4 $6 22. Ncxd5 Nxd5 23. Nxd5 $14 (23. gxh4 $2 Nxf4 24. Qc4 Bf8 $19)) 22. b5 {[%emt 0:03:27]} Rac8 {[%emt 0:00:27]} 23. Qa2 {[%emt 0:05:13]} Bxf4 {[%emt 0:05:18]} 24. exf4 {[%emt 0:01:03]} Ne4 {[%emt 0:01:17]} (24... cxb5 $1 $17 {Strongly threatening ...b4.} 25. Nxb5 Ne4) 25. Qb2 {[%emt 0:07:08] [#]} ({White should play} 25. Be2 $1 $15) 25... cxb5 $1 $17 {[%emt 0:05:53]} 26. Nxb5 {[%emt 0:01:14]} Bc6 {[%emt 0:02:27]} ({Black should try} 26... Rc4 $17 27. Bxe4 Rxe4 28. Nxa7 Rexd4 (28... Rcxd4 29. Qb5 $15) 29. Qxb6 Rxc1 (29... Rxa4 $2 {loses.} 30. Rc7 $18) 30. Rxc1 Rxa4) 27. Rfd1 {[%emt 0:03:29]} (27. Be2 $1 $11) 27... h3 {[%emt 0:03:26]} 28. Qa3 $2 {[%emt 0:03:50] White does not recover from this.} (28. Be2 $17) 28... Bxb5 $19 {[%emt 0:04:22]} 29. axb5 {[%emt 0:00:16] [#]} Rxc1 {[%emt 0:00:07]} 30. Qxc1 {[%emt 0:00:49]} Qxb5 {[%emt 0:00:08]} 31. Bg4 {[%emt 0:01:18]} Qa4 $40 {[%emt 0:01:09][%mdl 128] Black wants a kill.} 32. Rd3 $2 {[%emt 0:00:48]} (32. Rf1) 32... Qa2 {[%emt 0:02:53]} 33. Qf1 {[%emt 0:00:17] [#]} Nxf2 $1 {[%emt 0:00:20][%mdl 512]} 34. Qxf2 {[%emt 0:00:44] [#]} (34. Bd7 Nxd3) 34... Re1+ $3 {[%emt 0:00:08][%mdl 512]} 35. Qxe1 {[%emt 0:00:11]} Qg2# {[%emt 0:00:00] Weighted Error Value: White=0.91/Black=0.08 (flawless) .  Loses game:     	White=1     	---        Mistake:       	White=3     	Black=2      Inaccurate:     	White=3     	---        OK:         	White=5     	Black=9      Best:        	White=1     	Black=1      Strong:       	---       	Black=1} 0-1

[Event "3rd President Cup-A 2024"]
[Site "Tashkent"]
[Date "2024.11.22"]
[Round "1.2"]
[White "Maghsoodloo, Parham"]
[Black "Zhang, Ziji"]
[Result "1-0"]
[ECO "A11"]
[WhiteElo "2712"]
[BlackElo "2380"]
[Annotator "TA"]
[PlyCount "73"]
[EventDate "2024.11.22"]
[EventType "swiss"]
[EventCountry "UZB"]
[SourceTitle "playchess.com"]
[Source "ChessBase"]
[SourceQuality "1"]
[TimeControl "5400+30"]

{[%evp 17,73,12,38,21,30,28,37,37,39,25,35,38,42,43,51,50,50,46,50,48,50,43,49,21,52,48,66,69,71,60,63,50,60,54,58,58,55,25,31,25,25,12,54,53,66,16,151,126,118,144,151,166,126,192,188,181,559,545]} 1. Nf3 {[%emt 0:00:02]} Nf6 {[%emt 0:00:28]} 2. g3 {[%emt 0:01:24]} g6 {[%emt 0:02:27]} 3. c4 {[%emt 0:05:34]} c6 {[%emt 0:01:32]} 4. b3 {[%emt 0:00:31]} Bg7 {[%emt 0:00:42]} 5. Bb2 {[%emt 0:00:08]} O-O {[%emt 0:00:51]} 6. Bg2 {[%emt 0:00:14]} d5 {[%emt 0:00:48]} 7. O-O {[%emt 0:00:15]} Bg4 {[%emt 0:02:04]} 8. d3 {[%emt 0:12:20]} Bxf3 {[%emt 0:05:38]} 9. Bxf3 {[%emt 0:00:24]} e6 {[%emt 0:00:30]} 10. Bg2 {[%emt 0:05:59]} Nbd7 {[%emt 0:02:25]} 11. Qc2 {[%emt 0:06:06]} Re8 {[%emt 0:07:07]} 12. Nd2 {[%emt 0:01:46][%cal Bb1d2,Bd2f3,Bf3e1,Be1d3][%mdl 32] White is slightly better.} Qe7 {[%emt 0:10:05]} 13. Rac1 {[%emt 0:04:56]} Red8 {[%emt 0:04:41]} 14. Rfd1 {[%emt 0:13:20]} Ne8 {[%emt 0:05:43]} 15. d4 {[%emt 0:00:32]} Nd6 {[%emt 0:00:40]} 16. e3 {[%emt 0:02:01]} Nf5 {[%emt 0:02:23]} 17. Nf3 {[%emt 0:00:11]} Rac8 {[%emt 0:05:36]} 18. Bh3 {[%emt 0:03:41]} Qe8 {[%emt 0:02:23]} 19. Qe2 {[%emt 0:00:53]} Nd6 {[%emt 0:11:06]} 20. Ne1 {[%emt 0:00:51]} Ne4 {[%emt 0:08:36]} 21. Nd3 {[%emt 0:00:34]} f5 {[%emt 0:00:29]} 22. Bg2 {[%emt 0:00:10]} Qe7 {[%emt 0:01:06]} 23. Rc2 {[%emt 0:01:04]} Re8 {[%emt 0:00:51]} 24. Re1 {[%emt 0:01:18]} Rcd8 {[%emt 0:00:55]} 25. Qd1 {[%emt 0:01:27]} dxc4 {[%emt 0:08:21]} 26. bxc4 {[%emt 0:02:15]} e5 {[%emt 0:01:29]} 27. Qa1 {[%emt 0:02:53]} exd4 {[%emt 0:00:19]} 28. exd4 {[%emt 0:00:17] [#] Threatens to win with f3.} Qf7 {[%emt 0:00:08]} 29. a4 {[%emt 0:01:33]} Nb6 {[%emt 0:01:46]} 30. Rec1 {[%emt 0:02:47]} a5 {[%emt 0:01:42]} 31. f3 {[%emt 0:04:38]} (31. f4 $14) 31... Nd6 {[%emt 0:01:55]} (31... Ng5 $11 {remains equal.}) 32. c5 $16 {[%emt 0:09:42]} Ndc4 {[%emt 0:00:42] [#] ...Nxb2 would now be deadly.} 33. cxb6 {[%emt 0:00:05]} Nxb2 {[%emt 0:00:10]} 34. Nxb2 {[%emt 0:00:05]} ({Of course not} 34. Rxb2 Bxd4+ 35. Kh1 Re3 $11) 34... Bxd4+ {[%emt 0:02:06]} 35. Kh1 {[%emt 0:00:02]} Re3 {[%emt 0:03:24]} 36. Qb1 {[%emt 0:01:32] Nc4 is the strong threat.} Rb3 $2 {[%emt 0:00:23]} (36... Ra3 {is a better chance.} 37. Rd2 Qe7) 37. Bf1 {[%emt 0:00:50] Weighted Error Value: White=0.08 (flawless) /Black=0.27 (precise) .  Mistake:       	White=1     	Black=2      Inaccurate:     	White=2     	Black=2      OK:         	White=8     	Black=8      Best:        	White=3     	---} 1-0

[Event "3rd President Cup-A 2024"]
[Site "Tashkent"]
[Date "2024.11.22"]
[Round "1.3"]
[White "Kamalidenova, Meruert"]
[Black "Tabatabaei, M. Amin"]
[Result "1/2-1/2"]
[ECO "B06"]
[WhiteElo "2378"]
[BlackElo "2686"]
[Annotator "TA"]
[PlyCount "130"]
[EventDate "2024.11.22"]
[EventType "swiss"]
[EventCountry "UZB"]
[SourceTitle "playchess.com"]
[Source "ChessBase"]
[SourceQuality "1"]
[TimeControl "5400+30"]

{[%evp 9,130,30,37,26,45,15,16,16,19,16,12,1,44,18,43,14,68,67,71,62,67,-12,-6,-22,-8,-64,-62,-69,-84,-146,-141,-198,-189,-186,-187,-170,-56,-50,-59,-65,-39,-33,0,0,0,0,0,0,0,0,45,57,199,197,183,183,204,167,213,47,53,46,43,11,43,0,-7,-18,-18,-17,-12,-85,-83,-71,-51,-33,-40,-32,-41,-80,-80,-77,-8,-6,-7,-8,-8,-8,-8,-85,-16,-73,-71,-101,0,0,0,0,0,0,0,0,0,0,0,0,0,0,0,0,0,0,0,0,0,0,0,0,0,0,0,0,0]} 1. e4 {[%emt 0:00:07]} g6 {[%emt 0:00:21]} 2. d4 {[%emt 0:00:07]} Bg7 {[%emt 0:00:14]} 3. Nc3 {[%emt 0:00:13]} d6 {[%emt 0:00:11]} 4. Be3 {[%emt 0:00:47]} a6 {[%emt 0:00:25]} 5. h4 {[%emt 0:01:00]} h5 {[%emt 0:00:33]} 6. Qd2 {[%emt 0:00:17]} b5 {[%emt 0:00:19]} 7. a3 {[%emt 0:01:51]} Nf6 {[%emt 0:01:14]} 8. f3 {[%emt 0:00:16]} Nbd7 {[%emt 0:01:58]} 9. O-O-O {[%emt 0:00:36][%cal Oe4e5]} Bb7 {[%emt 0:00:27]} 10. Kb1 {[%emt 0:00:33]} Rc8 {[%emt 0:10:36]} 11. Nh3 {[%emt 0:03:12]} O-O {[%emt 0:17:12]} 12. Qe1 {[%emt 0:10:59][%cal Oe4e5]} e5 {[%emt 0:12:12]} (12... Qe8 $11) 13. d5 $14 {[%emt 0:02:59][%cal Og2g4]} c6 {[%emt 0:01:32]} 14. dxc6 {[%emt 0:05:44] White is more active.} Rxc6 {[%emt 0:00:13]} 15. Na2 {[%emt 0:02:05] [#]} (15. Nf2 $14) 15... d5 $1 {[%emt 0:11:25]} 16. exd5 {[%emt 0:02:47]} Rd6 {[%emt 0:00:06]} 17. c4 {[%emt 0:03:27]} (17. Nf2 $11) 17... bxc4 $15 {[%emt 0:00:36]} 18. Bxc4 {[%emt 0:00:57]} e4 {[%emt 0:05:30]} (18... Bxd5 $6 19. Nb4 Bxc4 (19... Qa8 20. Bxd5 Nxd5 21. Qd2 $16) 20. Rxd6 $16) 19. fxe4 {[%emt 0:05:22]} (19. Qg3 $142 Nb6 20. Bb3 Bxd5 21. Nb4 (21. Bc5 Bxb3 22. Qxd6 Nfd7 $17)) 19... Re8 {[%emt 0:01:09]} 20. Qb4 {[%emt 0:07:29]} (20. Bd3 $17 Ne5 (20... Nxe4 21. Bxe4 Rxe4 22. Ng5 $17) 21. Qf1 Nxd3 22. Qxd3) 20... Nb6 $1 $19 {[%emt 0:02:56]} 21. Ng5 {[%emt 0:06:49]} (21. Bxb6 $2 Rxb6 22. Qa4 Nxe4 $19 (22... Rxe4 $2 23. Qc2 $19)) 21... Nxe4 {[%emt 0:06:11][%cal Oa6a5] White must now prevent ...a5!} 22. Bb3 {[%emt 0:07:08]} Nxg5 {[%emt 0:06:37]} (22... Bxd5 $19 {Threatens to win with ...Qc7.} 23. Bf4 (23. Bxb6 $2 Rxb6 24. Bxd5 Rxb4 $19) 23... Nxg5 24. Bxg5 (24. Qxd6 $2 Qxd6 25. Bxd6 Bxb3 $19) (24. Bxd6 $2 Re4 $19) 24... Qd7 25. Bxd5 Nxd5 (25... Rxd5 $2 26. Qb3 $19)) 23. Bxg5 $15 {[%emt 0:00:13]} Qd7 {[%emt 0:00:04]} 24. Bf4 {[%emt 0:11:34]} Rxd5 {[%emt 0:02:04]} 25. Ka1 {[%emt 0:08:02]} (25. Qxb6 $2 Qf5+ 26. Bc2 (26. Ka1 $2 Rb5 $19) 26... Qxf4 $19) 25... Rxd1+ {[%emt 0:00:47]} (25... Qc6 $5 26. Rc1 Bxb2+ 27. Kxb2 Qf6+ 28. Nc3 a5 $15) 26. Rxd1 {[%emt 0:00:08]} Qb5 {[%emt 0:00:02]} 27. Nc3 {[%emt 0:07:41]} Qxb4 28. axb4 {[%emt 0:00:01]} Bf8 {[%emt 0:03:25] Wards off Rd6} (28... Bxg2 $6 29. Rd6 Nc8 (29... Re1+ $2 30. Ka2 $18) 30. Rxg6 $18 (30. Rxa6 Re1+ 31. Ka2 Rf1 $14)) 29. Bc7 $36 {[%emt 0:03:32][%mdl 2048] White has good play.} Na8 {[%emt 0:00:05]} 30. Ba5 {[%emt 0:00:32]} Bxg2 {[%emt 0:00:37]} (30... Kg7 $14) 31. Rg1 $1 $18 {[%emt 0:00:35]} Bb7 {[%emt 0:01:07]} 32. Rxg6+ {[%emt 0:00:08]} Bg7 {[%emt 0:00:13] [#]} 33. Rd6 $1 {[%emt 0:01:24] Rd7 would now be deadly.} Bc8 {[%emt 0:01:54]} (33... Bf8 $142 34. Rd1 Re3) 34. Bd5 $2 {[%emt 0:00:58]} (34. Ba4 $18 Bf8 35. Rd1) 34... Be5 $14 {[%emt 0:02:03]} 35. Rg6+ {[%emt 0:02:59]} Kf8 {[%emt 0:00:06]} 36. Rh6 {[%emt 0:01:50]} Bg4 {[%emt 0:02:21]} 37. Bc6 {[%emt 0:01:40]} (37. Rxa6 Nc7 38. Bxc7 Bxc7 $11) (37. Bc4 $14) 37... Rb8 $11 {[%emt 0:00:50]} 38. Be4 {[%emt 0:01:03]} Nc7 {[%emt 0:02:44] White should prevent ...Ne6.} 39. Rc6 {[%emt 0:00:12]} ({Wrong is} 39. Bxc7 $2 Bxc7 40. Bd5 Rxb4 41. Bxf7 Kxf7 $19) 39... Nb5 {[%emt 0:09:41]} 40. Nd5 {[%emt 0:00:39] [#]} (40. Ka2 $11) 40... Nd4 $1 $17 {[%emt 0:00:00]} 41. Rxa6 {[%emt 0:00:22]} Nb3+ {[%emt 0:01:00]} (41... Be2 $5 42. b5 Bxb5 (42... Rxb5 43. Ra8+ Kg7 44. Bc3 $15) 43. Bb4+ Kg7 $17) 42. Ka2 {[%emt 0:00:13]} Nxa5 {[%emt 0:00:00]} 43. Rxa5 {[%emt 0:00:29]} Bg3 {[%emt 0:00:00] A strong pair of Bishops.} 44. b5 {[%emt 0:01:03]} Bxh4 {[%emt 0:00:00]} 45. b6 {[%emt 0:00:13]} Bg3 {[%emt 0:00:00]} (45... Bf2 $17 46. Ka3 Bxb6 47. Nxb6 Rxb6) 46. Nf6 $11 {[%emt 0:00:48]} Be6+ {[%emt 0:00:35]} (46... Rxb6 {simplifies} 47. Nxg4 hxg4 48. Rg5 Ke7) 47. Kb1 {[%emt 0:00:59]} (47. Bd5 {simplifies} Rxb6 48. Bxe6 Rxe6 49. Nxh5 Bd6 50. Ra8+) 47... h4 {[%emt 0:00:54]} (47... Rxb6 {simplifies} 48. Rxh5 Rb4 49. Kc2 Bf2) 48. b7 {[%emt 0:00:06]} h3 {[%emt 0:00:27]} 49. Bc6 {[%emt 0:00:47]} (49. Bf3 $11) 49... h2 {[%emt 0:00:18]} ({Black should try} 49... Ke7 $17 50. Rg5 Bh4 (50... Kxf6 51. Rxg3 h2 52. Bh1 $16)) 50. Rh5 {[%emt 0:00:08]} (50. Bh1 $11 {keeps the balance.}) 50... Ke7 $17 {[%emt 0:00:38]} 51. Ne4 {[%emt 0:00:23]} Bg4 {[%emt 0:00:46]} (51... Bf5 $17 {aiming for ...Bc7.} 52. Ka2 Bc7) 52. Nxg3 $11 {[%emt 0:01:07] The position is equal.} Bxh5 {[%emt 0:00:05]} 53. Nxh5 {[%emt 0:00:02]} Kd6 {[%emt 0:00:04]} 54. Bf3 {[%emt 0:00:21]} Rh8 {[%emt 0:01:33] Strongly threatening ...Kc7.} 55. Ng3 {[%emt 0:00:12]} Kc7 {[%emt 0:00:04]} 56. Nh1 $1 {[%emt 0:00:13]} f5 {[%emt 0:01:29]} 57. Kc2 {[%emt 0:00:14]} Rh3 {[%emt 0:00:07]} 58. Bd5 {[%emt 0:01:23]} f4 {[%emt 0:00:21]} 59. Kd2 {[%emt 0:00:10]} Re3 {[%emt 0:00:11]} 60. b4 {[%emt 0:00:25]} Re5 {[%emt 0:00:50]} 61. Bc6 {[%emt 0:00:23]} Re6 {[%emt 0:00:20]} 62. b5 {[%emt 0:00:12]} Re3 {[%emt 0:00:53]} 63. Nf2 {[%emt 0:00:38] Hoping for Nd3.} Re6 {[%emt 0:00:04]} 64. Nh1 {[%emt 0:00:12]} Re3 {[%emt 0:00:25]} 65. Nf2 {[%emt 0:00:47]} Re6 {[%emt 0:00:08] What a bad dream for Black.   Weighted Error Value: White=0.22 (precise) /Black=0.15 (very precise) .  Missed win:     	White=1     	---        Mistake:       	White=8     	Black=7      Inaccurate:     	White=6     	Black=4      OK:         	White=25    	Black=20     Best:        	White=3     	Black=4      Strong:       	White=3     	Black=2} 1/2-1/2

[Event "3rd President Cup-A 2024"]
[Site "Tashkent"]
[Date "2024.11.22"]
[Round "1.4"]
[White "Sindarov, Javokhir"]
[Black "Goltseva, Ekaterina"]
[Result "1-0"]
[ECO "A14"]
[WhiteElo "2682"]
[BlackElo "2378"]
[Annotator "TA"]
[PlyCount "95"]
[EventDate "2024.11.22"]
[EventType "swiss"]
[EventCountry "UZB"]
[SourceTitle "playchess.com"]
[Source "ChessBase"]
[SourceQuality "1"]
[TimeControl "5400+30"]

{[%evp 11,95,10,15,-6,10,6,15,6,20,28,14,15,22,9,14,20,36,32,54,46,111,116,113,103,146,125,122,132,152,122,137,145,148,118,161,143,147,147,225,157,186,205,216,210,248,189,321,216,283,268,292,289,291,268,346,283,295,267,279,291,308,6,332,341,327,325,304,276,422,347,356,305,566,559,584,612,614,607,700,713,1124,1127,1139,1135,1022,993]} 1. Nf3 {[%emt 0:00:06]} Nf6 {[%emt 0:00:15]} 2. c4 {[%emt 0:00:18]} e6 {[%emt 0:00:13]} 3. g3 {[%emt 0:00:05]} d5 {[%emt 0:00:27]} 4. Bg2 {[%emt 0:00:06]} Be7 {[%emt 0:01:19]} 5. O-O {[%emt 0:00:08]} O-O {[%emt 0:00:07]} 6. d3 {[%emt 0:00:03]} c5 {[%emt 0:08:06]} 7. Ne5 {[%emt 0:00:57]} Nbd7 {[%emt 0:16:07]} 8. Nxd7 {[%emt 0:01:34]} Bxd7 {[%emt 0:00:48]} 9. e4 {[%emt 0:00:48] The position is equal.} dxe4 {[%emt 0:03:35]} 10. dxe4 {[%emt 0:00:44]} Bc6 {[%emt 0:00:29]} 11. Qe2 {[%emt 0:00:11]} Nd7 {[%emt 0:01:48]} 12. f4 {[%emt 0:07:49]} Re8 {[%emt 0:10:40]} 13. Nc3 {[%emt 0:02:01]} Bf8 {[%emt 0:03:49]} 14. Be3 {[%emt 0:01:03]} Qc7 {[%emt 0:01:29]} 15. g4 {[%emt 0:05:36]} f5 {[%emt 0:14:14]} 16. gxf5 $16 {[%emt 0:04:23]} exf5 {[%emt 0:00:06]} 17. e5 {[%emt 0:00:08]} (17. exf5 $6 Nf6 $11) 17... Nb6 {[%emt 0:01:12]} 18. b3 {[%emt 0:01:16]} Rad8 {[%emt 0:01:05]} 19. Rad1 {[%emt 0:00:14][%cal Ba1d1,Bd1d2,Bd2d3][%mdl 32]} Kh8 {[%emt 0:04:48]} 20. Bxc6 {[%emt 0:10:17]} Qxc6 {[%emt 0:00:40]} 21. Qg2 {[%emt 0:00:08]} Qc8 {[%emt 0:07:04]} 22. Nd5 {[%emt 0:00:52] White is much more active.} Qc6 {[%emt 0:04:04]} 23. Rd2 {[%emt 0:03:58]} Rd7 {[%emt 0:02:44]} 24. Rfd1 {[%emt 0:01:09]} Red8 {[%emt 0:10:35]} (24... Qh6 $16 25. Qf3 Red8) 25. Bf2 {[%emt 0:00:08]} Be7 {[%emt 0:01:45][%cal Bf8e7,Be7d8,Bd8c7][%mdl 32]} 26. Rd3 {[%emt 0:00:35]} Qe6 {[%emt 0:00:24]} 27. Qf3 {[%emt 0:00:42]} h6 {[%emt 0:01:10]} 28. a4 {[%emt 0:00:30]} Rg8 {[%emt 0:01:26]} (28... Nc8 $142 29. h4 Bf8) 29. Kh1 {[%emt 0:00:38]} Qc6 {[%emt 0:01:27]} 30. Qg2 {[%emt 0:01:34]} Bd8 {[%emt 0:01:06]} 31. Nc3 {[%emt 0:02:27]} Rxd3 {[%emt 0:00:47]} 32. Rxd3 {[%emt 0:00:06]} g5 {[%emt 0:01:18]} 33. Rd6 {[%emt 0:04:56]} Qxg2+ {[%emt 0:00:07]} 34. Kxg2 {[%emt 0:00:04]} gxf4+ {[%emt 0:00:32]} 35. Kf3 {[%emt 0:00:03]} Bc7 {[%emt 0:01:04]} 36. Rxh6+ {[%emt 0:00:08]} Kg7 {[%emt 0:00:03] Loses the game.} 37. Re6 {[%emt 0:00:09]} Kf7 {[%emt 0:00:55] Prevents Re7+} 38. Rf6+ {[%emt 0:00:06][%cal Be6f6,Bf6f5,Bf5c5,Bc5b5,Bb5b7][%mdl 32]} Kg7 {[%emt 0:00:31]} 39. Rxf5 {[%emt 0:00:08]} ({Stronger than} 39. Kxf4 Bxe5+ 40. Kxe5 Nd7+ 41. Kxf5 Nxf6 $11) 39... Re8 {[%emt 0:00:56]} (39... Nd7 $142 40. e6 (40. Kxf4 Re8 $16) (40. Rxf4 Bxe5 41. Rg4+ Kf7 $16) 40... Kg6) 40. e6 {[%emt 0:02:09]} (40. Kxf4 Nd7 $16) 40... Rxe6 {[%emt 0:00:18]} 41. Rxc5 {[%emt 0:00:28]} Bd6 {[%emt 0:00:21]} (41... Bd8 {was worth a try.} 42. Ne4 (42. Kxf4 Nd7 $18) 42... Kf7 43. Kxf4 Kg6) 42. Rb5 $18 {[%emt 0:00:50] White is clearly winning.} Nd7 {[%emt 0:00:31]} 43. Rxb7 {[%emt 0:00:48]} Re7 {[%emt 0:00:02] [#] And now ...Ne5+ would win.} 44. Bd4+ {[%emt 0:00:52]} Kf7 {[%emt 0:00:37]} 45. Ne4 {[%emt 0:00:58]} Be5 {[%emt 0:00:59]} 46. Bc5 {[%emt 0:00:52]} Nxc5 {[%emt 0:00:38]} 47. Rxe7+ {[%emt 0:00:05]} Kxe7 {[%emt 0:00:03]} 48. Nxc5 {[%emt 0:00:05] Weighted Error Value: White=0.17 (very precise) /Black=0.39.  Loses game:     	---       	Black=1      Mistake:       	---       	Black=5      Inaccurate:     	White=2     	Black=3      OK:         	White=20    	Black=8      Best:        	---       	Black=1} 1-0

[Event "3rd President Cup-A 2024"]
[Site "Tashkent"]
[Date "2024.11.22"]
[Round "1.5"]
[White "Vaz, Ethan"]
[Black "Vokhidov, Shamsiddin"]
[Result "1/2-1/2"]
[ECO "B22"]
[WhiteElo "2370"]
[BlackElo "2681"]
[Annotator "TA"]
[PlyCount "108"]
[EventDate "2024.11.22"]
[EventType "swiss"]
[EventCountry "UZB"]
[SourceTitle "playchess.com"]
[Source "ChessBase"]
[SourceQuality "1"]
[TimeControl "5400+30"]

{[%evp 12,108,26,31,39,16,33,18,16,18,47,40,48,55,37,19,34,33,18,40,66,74,109,100,75,63,67,54,59,58,111,69,75,72,66,76,80,41,51,50,55,45,68,20,13,18,27,25,25,0,0,0,0,-11,0,0,-7,-10,0,-36,-20,-17,-30,-29,-14,-38,0,0,0,-8,0,-11,0,0,0,0,0,0,0,0,0,0,0,0,92,99,133,102,110,20,49,0,11,14,11,8,57,4,124]} 1. e4 {[%emt 0:00:06]} c5 {[%emt 0:00:42]} 2. c3 {[%emt 0:00:13]} d5 {[%emt 0:01:52]} 3. exd5 {[%emt 0:00:09]} Qxd5 {[%emt 0:00:01]} 4. d4 {[%emt 0:00:09]} Nf6 {[%emt 0:00:05]} 5. Nf3 {[%emt 0:00:09]} e6 {[%emt 0:00:04]} 6. Na3 {[%emt 0:08:10]} Qd8 {[%emt 0:07:00]} 7. Nc4 {[%emt 0:11:03]} Be7 {[%emt 0:05:23]} 8. Be2 {[%emt 0:03:46]} O-O {[%emt 0:06:09]} 9. O-O {[%emt 0:01:13]} Qc7 {[%emt 0:03:27]} 10. Bg5 {[%emt 0:04:52]} Rd8 {[%emt 0:04:08]} 11. Bh4 {[%emt 0:13:22]} Nh5 {[%emt 0:07:38]} 12. Bxe7 {[%emt 0:00:33]} Qxe7 {[%emt 0:00:02]} 13. Qc1 {[%emt 0:04:36]} Nf6 {[%emt 0:03:40]} 14. Rd1 {[%emt 0:04:03]} (14. dxc5 {feels hotter.} Qxc5 15. Rd1 Bd7 16. Qf4) 14... cxd4 {[%emt 0:06:11]} 15. Nxd4 {[%emt 0:05:51]} Na6 {[%emt 0:02:03]} 16. Bf3 {[%emt 0:03:49]} Nc7 {[%emt 0:12:40]} 17. Ne5 {[%emt 0:07:18]} (17. Qg5 {keeps more tension.} Nfd5 18. Qxe7 Nxe7 19. Nb5) 17... Nfe8 {[%emt 0:07:13]} 18. Re1 {[%emt 0:04:10][%cal Od4c6] aiming for Ndc6!} Qf8 {[%emt 0:02:19]} 19. Nb3 {[%emt 0:03:36] White has more active pieces.} f6 {[%emt 0:02:04]} 20. Nc4 {[%emt 0:00:06]} Nd5 {[%emt 0:05:08]} (20... e5 $14) 21. Ne3 {[%emt 0:04:17]} Nf4 {[%emt 0:02:09]} 22. Qc2 {[%emt 0:01:27]} Rb8 {[%emt 0:03:25]} 23. Rad1 {[%emt 0:03:47]} Nd6 {[%emt 0:00:17]} 24. c4 {[%emt 0:01:22]} Nf7 {[%emt 0:01:25]} 25. Rxd8 {[%emt 0:03:37]} Qxd8 {[%emt 0:00:06]} 26. Rd1 {[%emt 0:00:13]} Qc7 {[%emt 0:01:21]} 27. Qd2 {[%emt 0:04:13]} (27. Nd4 $14 {was preferrable.}) 27... b6 $11 {[%emt 0:01:27]} 28. Nd4 {[%emt 0:01:58]} Bd7 {[%emt 0:00:55] Prevents Nc6.} 29. g3 {[%emt 0:01:40]} Ng6 {[%emt 0:00:36]} 30. Nb5 {[%emt 0:01:00]} Bxb5 {[%emt 0:00:13]} 31. cxb5 {[%emt 0:00:01]} Nge5 {[%emt 0:00:30]} 32. Bg2 {[%emt 0:01:24]} Rd8 {[%emt 0:00:09]} 33. Rc1 {[%emt 0:01:40]} Qe7 {[%emt 0:02:31]} 34. Qc3 {[%emt 0:01:16]} g5 {[%emt 0:02:24]} 35. Rd1 {[%emt 0:01:18]} Rxd1+ {[%emt 0:01:00]} 36. Nxd1 {[%emt 0:00:01]} Qd7 {[%emt 0:00:20]} 37. Ne3 {[%emt 0:00:19]} Kg7 {[%emt 0:01:23]} ({Of course not} 37... Qxb5 $6 38. Qc8+ Kg7 39. Qxe6 $14) 38. a4 {[%emt 0:00:49]} g4 {[%emt 0:00:15]} 39. h4 {[%emt 0:00:51]} h5 {[%emt 0:00:23]} 40. Be4 {[%emt 0:00:59]} Nd6 {[%emt 0:01:48]} 41. Ba8 {[%emt 0:00:40]} Nc8 {[%emt 0:01:22]} 42. Kg2 {[%emt 0:00:33]} Ne7 {[%emt 0:00:11]} 43. Be4 {[%emt 0:00:16]} Kf7 {[%emt 0:00:44]} 44. b3 {[%emt 0:00:28]} Kg7 {[%emt 0:00:57]} 45. Nc4 {[%emt 0:00:33]} Qc7 {[%emt 0:00:25]} 46. Qd4 {[%emt 0:00:26]} Nxc4 {[%emt 0:01:18]} 47. bxc4 {[%emt 0:00:10][%cal Oa4a5][%mdl 4096] Endgame. KQB-KQN} Nc8 {[%emt 0:00:30] [#]} (47... Kf7 $11) 48. Bc6 $1 $16 {[%emt 0:00:40]} Qd6 {[%emt 0:02:02]} 49. Qe4 {[%emt 0:00:54]} Qe7 {[%emt 0:01:48] Repels Be8} 50. Qe3 {[%emt 0:00:35]} ({Better is} 50. Qc2 $16) 50... Nd6 $1 $11 {[%emt 0:00:16]} 51. Qd3 {[%emt 0:00:25]} (51. Qa3 $14) 51... Nb7 {[%emt 0:03:26]} 52. Bxb7 {[%emt 0:00:36]} Qxb7+ {[%emt 0:00:05]} 53. Kg1 {[%emt 0:00:24][%cal Oa4a5] Hoping for a5!} Qc7 {[%emt 0:00:06]} (53... e5 $1 $11) 54. Qe4 {[%emt 0:00:16]} ({White should play} 54. Qc3 $1 $14) 54... Qd7 {[%emt 0:00:44] Weighted Error Value: White=0.11 (very precise) /Black=0.11 (very precise) .  Mistake:       	White=4     	Black=4      Inaccurate:     	White=4     	Black=5      OK:         	White=22    	Black=20     Best:        	White=1     	---        Strong:       	White=1     	Black=1} (54... e5 $11 {remains equal.}) 1/2-1/2